[Event "Late-Titled-Tuesday-Blitz-June-18-2024"]
[Site "Chess.com"]
[Date "2024.06.18"]
[Round "3"]
[White "SHIVACalypso"]
[Black "Individoom"]
[Result "1-0"]
[WhiteElo "2532"]
[BlackElo "2794"]
[TimeControl "180+1"]
[EndTime "14:30:50 PDT"]
[Termination "SHIVACalypso won by resignation"]

1. Nf3 {[%clk 0:03:00.9]} 1... Nf6 {[%clk 0:02:59.4]} 2. c4 {[%clk 0:03:01.3]}
2... e6 {[%clk 0:02:58.3]} 3. g3 {[%clk 0:03:01.6]} 3... d5 {[%clk 0:02:58.1]}
4. Bg2 {[%clk 0:02:55.4]} 4... c6 {[%clk 0:02:50.5]} 5. O-O {[%clk 0:02:53.5]}
5... Be7 {[%clk 0:02:50.1]} 6. d4 {[%clk 0:02:52.4]} 6... O-O {[%clk 0:02:44.1]}
7. b3 {[%clk 0:02:49.2]} 7... Nbd7 {[%clk 0:02:41.9]} 8. Bb2 {[%clk 0:02:49]}
8... b6 {[%clk 0:02:41.8]} 9. Nbd2 {[%clk 0:02:48.9]} 9... Ba6 {[%clk 0:02:40]}
10. Re1 {[%clk 0:02:47.2]} 10... c5 {[%clk 0:02:25]} 11. Rc1 {[%clk 0:02:42.7]}
11... Rc8 {[%clk 0:02:24]} 12. e3 {[%clk 0:02:40.4]} 12... Qc7 {[%clk
0:02:15.4]} 13. dxc5 {[%clk 0:02:37.4]} 13... bxc5 {[%clk 0:02:11.7]} 14. cxd5
{[%clk 0:02:34.1]} 14... exd5 {[%clk 0:02:11]} 15. Nd4 {[%clk 0:02:31.6]} 15...
Rfe8 {[%clk 0:02:04.4]} 16. Nf5 {[%clk 0:02:29.9]} 16... Bf8 {[%clk 0:02:04.7]}
17. e4 {[%clk 0:02:26.9]} 17... dxe4 {[%clk 0:01:27.6]} 18. Nxe4 {[%clk
0:02:25.5]} 18... Nxe4 {[%clk 0:01:27.6]} 19. Bxe4 {[%clk 0:02:06.1]} 19... Ne5
{[%clk 0:01:27.3]} 20. Qh5 {[%clk 0:01:40.2]} 20... f6 {[%clk 0:00:41.6]} 21.
Bd5+ {[%clk 0:01:25.2]} 21... Kh8 {[%clk 0:00:41.2]} 22. Nh4 {[%clk 0:01:25.8]}
22... Bd3 {[%clk 0:00:31.2]} 23. Re4 {[%clk 0:01:14.5]} 23... g6 {[%clk
0:00:25.7]} 24. Nxg6+ {[%clk 0:00:50.4]} 24... Nxg6 {[%clk 0:00:26.6]} 25. Bxf6+
{[%clk 0:00:48.6]} 25... Bg7 {[%clk 0:00:26.8]} 26. Rxe8+ {[%clk 0:00:21]} 26...
Rxe8 {[%clk 0:00:27.7]} 27. Bxg7+ {[%clk 0:00:21.6]} 27... Kxg7 {[%clk
0:00:27.4]} 28. Bc4 {[%clk 0:00:17.1]} 28... Bxc4 {[%clk 0:00:27]} 29. Rxc4
{[%clk 0:00:17.7]} 29... Re1+ {[%clk 0:00:25.8]} 30. Kg2 {[%clk 0:00:18.2]}
30... Qc6+ {[%clk 0:00:25.1]} 31. Kh3 {[%clk 0:00:17.2]} 31... Qe6+ {[%clk
0:00:24.6]} 32. Kg2 {[%clk 0:00:15.9]} 32... Re5 {[%clk 0:00:20.6]} 33. Qf3
{[%clk 0:00:14.2]} 33... Qd5 {[%clk 0:00:19]} 34. Qxd5 {[%clk 0:00:09.6]} 34...
Rxd5 {[%clk 0:00:19.3]} 35. Ra4 {[%clk 0:00:09.5]} 35... Rd7 {[%clk 0:00:19.1]}
36. Kf3 {[%clk 0:00:07.6]} 36... Kf6 {[%clk 0:00:17.7]} 37. Ra5 {[%clk
0:00:07.8]} 37... Rc7 {[%clk 0:00:17.7]} 38. Ke4 {[%clk 0:00:07.6]} 38... Ke6
{[%clk 0:00:17.2]} 39. f4 {[%clk 0:00:08.2]} 39... Ne7 {[%clk 0:00:17.1]} 40.
Ra6+ {[%clk 0:00:08.1]} 40... Kf7 {[%clk 0:00:17]} 41. Ke5 {[%clk 0:00:08.1]}
41... c4 {[%clk 0:00:16.8]} 42. bxc4 {[%clk 0:00:07.9]} 42... Rxc4 {[%clk
0:00:16.7]} 43. Rxa7 {[%clk 0:00:08.1]} 43... Rc2 {[%clk 0:00:14.2]} 44. h4
{[%clk 0:00:06.6]} 44... Rg2 {[%clk 0:00:13.5]} 45. f5 {[%clk 0:00:06.1]} 45...
Re2+ {[%clk 0:00:12.8]} 46. Kf4 {[%clk 0:00:06.2]} 46... Kf6 {[%clk 0:00:11.6]}
47. Ra6+ {[%clk 0:00:05.6]} 47... Kf7 {[%clk 0:00:11.3]} 48. g4 {[%clk
0:00:05.5]} 48... Nd5+ {[%clk 0:00:10.5]} 49. Kg5 {[%clk 0:00:06]} 49... Re7
{[%clk 0:00:07.3]} 50. f6 {[%clk 0:00:04.8]} 50... Re5+ {[%clk 0:00:07.1]} 51.
Kh6 {[%clk 0:00:04.1]} 51... Nxf6 {[%clk 0:00:07.2]} 52. Ra7+ {[%clk 0:00:03.8]}
52... Ke6 {[%clk 0:00:06.4]} 53. g5 {[%clk 0:00:04.7]} 53... Nd5 {[%clk
0:00:05.1]} 54. Ra6+ {[%clk 0:00:04.4]} 54... Kf5 {[%clk 0:00:05.1]} 55. Kxh7
{[%clk 0:00:04.4]} 55... Kg4 {[%clk 0:00:05.2]} 56. g6 {[%clk 0:00:04.1]} 56...
Rh5+ {[%clk 0:00:03.9]} 57. Kg8 {[%clk 0:00:04]} 57... Kxh4 {[%clk 0:00:04.1]}
58. g7 {[%clk 0:00:04.4]} 58... Ne7+ {[%clk 0:00:03.7]} 59. Kf7 {[%clk
0:00:04.5]} 59... Rg5 {[%clk 0:00:03]} 60. Re6 {[%clk 0:00:03.5]} 60... Nf5
{[%clk 0:00:02.6]} 61. Rg6 {[%clk 0:00:03]} 61... Rxg6 {[%clk 0:00:02.3]} 62.
Kxg6 {[%clk 0:00:03.9]} 62... Nxg7 {[%clk 0:00:02.2]} 63. Kxg7 {[%clk
0:00:04.3]} 63... Kg5 {[%clk 0:00:02.8]} 64. a4 {[%clk 0:00:04.8]} 64... Kf5
{[%clk 0:00:03.3]} 65. a5 {[%clk 0:00:05.5]} 65... Ke6 {[%clk 0:00:04]} 66. a6
{[%clk 0:00:06.2]} 66... Kd6 {[%clk 0:00:04.7]} 67. a7 {[%clk 0:00:06.9]} 67...
Kc7 {[%clk 0:00:05.4]} 68. a8=Q {[%clk 0:00:07.5]} 1-0

[Event "Late-Titled-Tuesday-Blitz-June-18-2024"]
[Site "Chess.com"]
[Date "2024.06.18"]
[Round "3"]
[White "katharinareinecke"]
[Black "Andrii_Prydun"]
[Result "0-1"]
[WhiteElo "2047"]
[BlackElo "2365"]
[TimeControl "180+1"]
[EndTime "14:30:54 PDT"]
[Termination "Andrii_Prydun won by checkmate"]

1. d4 {[%clk 0:03:00.9]} 1... Nf6 {[%clk 0:02:57.7]} 2. Nf3 {[%clk 0:03:00.2]}
2... g6 {[%clk 0:02:53.2]} 3. g3 {[%clk 0:02:59.9]} 3... Bg7 {[%clk 0:02:52.6]}
4. Bg2 {[%clk 0:02:59.6]} 4... O-O {[%clk 0:02:40.1]} 5. O-O {[%clk 0:02:59]}
5... b6 {[%clk 0:02:37.5]} 6. c4 {[%clk 0:02:58.8]} 6... Bb7 {[%clk 0:02:37.3]}
7. b3 {[%clk 0:02:57.1]} 7... Bxf3 {[%clk 0:02:28.9]} 8. Bxf3 {[%clk 0:02:55.4]}
8... c6 {[%clk 0:02:29]} 9. Bb2 {[%clk 0:02:54.3]} 9... d5 {[%clk 0:02:28]} 10.
Nd2 {[%clk 0:02:50.5]} 10... e6 {[%clk 0:02:27.3]} 11. e4 {[%clk 0:02:44.9]}
11... Na6 {[%clk 0:02:16.7]} 12. cxd5 {[%clk 0:02:37.9]} 12... cxd5 {[%clk
0:02:15.6]} 13. Qe2 {[%clk 0:02:27.1]} 13... Nc7 {[%clk 0:02:00.7]} 14. exd5
{[%clk 0:02:15]} 14... Ncxd5 {[%clk 0:01:59.6]} 15. Nc4 {[%clk 0:02:11.3]} 15...
Rc8 {[%clk 0:01:52.2]} 16. Rac1 {[%clk 0:02:07.2]} 16... Rc7 {[%clk 0:01:47.3]}
17. Rfd1 {[%clk 0:01:45.3]} 17... Qb8 {[%clk 0:01:35.3]} 18. Ba3 {[%clk
0:01:43.7]} 18... Bh6 {[%clk 0:01:32.3]} 19. Rc2 {[%clk 0:01:36.8]} 19... b5
{[%clk 0:01:25.7]} 20. Bxf8 {[%clk 0:01:31.8]} 20... Bxf8 {[%clk 0:01:25.4]} 21.
Ne5 {[%clk 0:01:25.2]} 21... Nc3 {[%clk 0:00:56.5]} 22. Qd2 {[%clk 0:01:07.2]}
22... Nxd1 {[%clk 0:00:51.2]} 23. Qxd1 {[%clk 0:01:05.9]} 23... Qd8 {[%clk
0:00:46.7]} 24. Nc6 {[%clk 0:00:59.7]} 24... Qd7 {[%clk 0:00:35.1]} 25. Ne5
{[%clk 0:00:56.6]} 25... Qd6 {[%clk 0:00:33.9]} 26. Rxc7 {[%clk 0:00:53.1]}
26... Qxc7 {[%clk 0:00:30.3]} 27. Kg2 {[%clk 0:00:45.7]} 27... Bd6 {[%clk
0:00:20.6]} 28. Qd3 {[%clk 0:00:43.4]} 28... a6 {[%clk 0:00:15.9]} 29. Nc6
{[%clk 0:00:42.4]} 29... Kg7 {[%clk 0:00:14.1]} 30. d5 {[%clk 0:00:39.7]} 30...
exd5 {[%clk 0:00:04.6]} 31. Bxd5 {[%clk 0:00:39.2]} 31... Nxd5 {[%clk
0:00:05.5]} 32. Qxd5 {[%clk 0:00:39.4]} 32... Kg8 {[%clk 0:00:05.8]} 33. Qf3
{[%clk 0:00:32]} 33... Kg7 {[%clk 0:00:05.7]} 34. Nd4 {[%clk 0:00:32]} 34... Qd7
{[%clk 0:00:04.9]} 35. Ne2 {[%clk 0:00:31.1]} 35... Qe7 {[%clk 0:00:03.9]} 36.
Qc3+ {[%clk 0:00:30.4]} 36... Be5 {[%clk 0:00:02.2]} 37. Qf3 {[%clk 0:00:29.9]}
37... Qf6 {[%clk 0:00:03.1]} 38. Qd3 {[%clk 0:00:27]} 38... Qe6 {[%clk
0:00:02.2]} 39. Nf4 {[%clk 0:00:25.5]} 39... Bxf4 {[%clk 0:00:02.3]} 40. gxf4
{[%clk 0:00:25.9]} 40... Qf6 {[%clk 0:00:03]} 41. Qe3 {[%clk 0:00:22.2]} 41...
Qe6 {[%clk 0:00:03]} 42. Qf3 {[%clk 0:00:20.6]} 42... Kf6 {[%clk 0:00:03.4]} 43.
Qg3 {[%clk 0:00:20.3]} 43... Kg7 {[%clk 0:00:04]} 44. Qf3 {[%clk 0:00:20.4]}
44... h5 {[%clk 0:00:04.9]} 45. Qg3 {[%clk 0:00:20.5]} 45... Qf5 {[%clk
0:00:05.3]} 46. Qf3 {[%clk 0:00:20.5]} 46... a5 {[%clk 0:00:05.8]} 47. h3 {[%clk
0:00:20.4]} 47... b4 {[%clk 0:00:06.4]} 48. Kh2 {[%clk 0:00:20.6]} 48... Kh6
{[%clk 0:00:06.8]} 49. Qe3 {[%clk 0:00:20.3]} 49... Kg7 {[%clk 0:00:07.1]} 50.
Qf3 {[%clk 0:00:20.6]} 50... g5 {[%clk 0:00:06.6]} 51. Qg3 {[%clk 0:00:19.5]}
51... Qxf4 {[%clk 0:00:06.6]} 52. Kg2 {[%clk 0:00:17.3]} 52... Qxg3+ {[%clk
0:00:03.8]} 53. fxg3 {[%clk 0:00:16.5]} 53... f5 {[%clk 0:00:03.8]} 54. Kf3
{[%clk 0:00:16.9]} 54... Kf6 {[%clk 0:00:04.2]} 55. h4 {[%clk 0:00:16.4]} 55...
gxh4 {[%clk 0:00:03.6]} 56. gxh4 {[%clk 0:00:16.8]} 56... Ke5 {[%clk 0:00:04.5]}
57. Ke3 {[%clk 0:00:17]} 57... f4+ {[%clk 0:00:05.1]} 58. Kf3 {[%clk 0:00:16.6]}
58... Kf5 {[%clk 0:00:05.4]} 59. Kf2 {[%clk 0:00:16.6]} 59... Ke4 {[%clk
0:00:05.8]} 60. Ke2 {[%clk 0:00:16.9]} 60... f3+ {[%clk 0:00:06]} 61. Kf2 {[%clk
0:00:17.2]} 61... Kf4 {[%clk 0:00:05.1]} 62. Kf1 {[%clk 0:00:16.4]} 62... Ke3
{[%clk 0:00:05.4]} 63. Ke1 {[%clk 0:00:16.6]} 63... Kf4 {[%clk 0:00:03.3]} 64.
Kf2 {[%clk 0:00:16.4]} 64... Kg4 {[%clk 0:00:04.2]} 65. Ke3 {[%clk 0:00:14.7]}
65... Kg3 {[%clk 0:00:04.7]} 66. Ke4 {[%clk 0:00:13.9]} 66... f2 {[%clk
0:00:05.2]} 67. Kf5 {[%clk 0:00:14.7]} 67... f1=Q+ {[%clk 0:00:05.7]} 68. Kg5
{[%clk 0:00:15.6]} 68... Qe2 {[%clk 0:00:06.3]} 69. Kh6 {[%clk 0:00:15.7]} 69...
Qg4 {[%clk 0:00:06.3]} 70. Kh7 {[%clk 0:00:15.7]} 70... Kf4 {[%clk 0:00:06.2]}
71. a3 {[%clk 0:00:15.3]} 71... bxa3 {[%clk 0:00:05.5]} 72. b4 {[%clk
0:00:15.8]} 72... axb4 {[%clk 0:00:04.9]} 73. Kh6 {[%clk 0:00:15.7]} 73... Kf5
{[%clk 0:00:05.4]} 74. Kh7 {[%clk 0:00:15.8]} 74... Kf6 {[%clk 0:00:06.1]} 75.
Kh6 {[%clk 0:00:15.7]} 75... Qg6# {[%clk 0:00:06.5]} 0-1

[Event "Late-Titled-Tuesday-Blitz-June-18-2024"]
[Site "Chess.com"]
[Date "2024.06.18"]
[Round "3"]
[White "s-dshubin"]
[Black "Rochachade"]
[Result "0-1"]
[WhiteElo "2388"]
[BlackElo "2193"]
[TimeControl "180+1"]
[EndTime "14:31:06 PDT"]
[Termination "Rochachade won by resignation"]

1. e4 {[%clk 0:03:00]} 1... Nf6 {[%clk 0:03:00.9]} 2. Nc3 {[%clk 0:02:55.3]}
2... e5 {[%clk 0:03:00.9]} 3. Nf3 {[%clk 0:02:55.6]} 3... Nc6 {[%clk 0:03:01.1]}
4. Bc4 {[%clk 0:02:55.3]} 4... Nxe4 {[%clk 0:03:00.9]} 5. Bxf7+ {[%clk
0:02:54.8]} 5... Kxf7 {[%clk 0:03:01.8]} 6. Nxe4 {[%clk 0:02:55.4]} 6... d5
{[%clk 0:03:02.1]} 7. Nc3 {[%clk 0:02:52.9]} 7... e4 {[%clk 0:03:00.7]} 8. Ng1
{[%clk 0:02:52.4]} 8... Be6 {[%clk 0:02:50.4]} 9. d3 {[%clk 0:02:52.1]} 9...
exd3 {[%clk 0:02:47.6]} 10. Qxd3 {[%clk 0:02:53]} 10... Bc5 {[%clk 0:02:41.8]}
11. Bf4 {[%clk 0:02:44.9]} 11... Nb4 {[%clk 0:02:36.2]} 12. Qd2 {[%clk
0:02:42.2]} 12... Qf6 {[%clk 0:02:25]} 13. O-O-O {[%clk 0:02:34.9]} 13... c6
{[%clk 0:02:00.6]} 14. a3 {[%clk 0:02:34.3]} 14... Na6 {[%clk 0:01:58.1]} 15.
Nf3 {[%clk 0:02:34.2]} 15... Rhe8 {[%clk 0:01:57]} 16. Be5 {[%clk 0:02:23.1]}
16... Qf5 {[%clk 0:01:48.8]} 17. Bd4 {[%clk 0:02:17.4]} 17... Bxd4 {[%clk
0:01:47.6]} 18. Nxd4 {[%clk 0:02:17.5]} 18... Qf6 {[%clk 0:01:45.1]} 19. Nxe6
{[%clk 0:02:17.7]} 19... Rxe6 {[%clk 0:01:44.8]} 20. Rhe1 {[%clk 0:02:18.2]}
20... Rae8 {[%clk 0:01:44.2]} 21. Rxe6 {[%clk 0:02:17.9]} 21... Qxe6 {[%clk
0:01:43.3]} 22. Qf4+ {[%clk 0:02:13.9]} 22... Qf6 {[%clk 0:01:38.6]} 23. Qxf6+
{[%clk 0:02:14.1]} 23... Kxf6 {[%clk 0:01:39.5]} 24. Kd2 {[%clk 0:02:06.9]}
24... Nc5 {[%clk 0:01:28.2]} 25. f3 {[%clk 0:02:05.9]} 25... g5 {[%clk 0:01:27]}
26. Ne2 {[%clk 0:02:02]} 26... Ne6 {[%clk 0:01:15]} 27. Rh1 {[%clk 0:01:59.5]}
27... Nf4 {[%clk 0:01:05.9]} 28. Nxf4 {[%clk 0:01:58.7]} 28... gxf4 {[%clk
0:01:06.8]} 29. g3 {[%clk 0:01:56.2]} 29... Kf5 {[%clk 0:01:03.9]} 30. g4+
{[%clk 0:01:54.2]} 30... Kg6 {[%clk 0:00:58.7]} 31. h4 {[%clk 0:01:39.6]} 31...
Re3 {[%clk 0:00:57.8]} 32. Rf1 {[%clk 0:01:35.8]} 32... h6 {[%clk 0:00:54]} 33.
Rf2 {[%clk 0:01:34.8]} 33... Kf6 {[%clk 0:00:52.6]} 34. Rf1 {[%clk 0:01:31.4]}
34... d4 {[%clk 0:00:52.9]} 35. Rf2 {[%clk 0:01:23.5]} 35... c5 {[%clk
0:00:53.2]} 36. a4 {[%clk 0:01:20.9]} 36... b6 {[%clk 0:00:53]} 37. b3 {[%clk
0:01:20.5]} 37... a6 {[%clk 0:00:52.6]} 38. Rf1 {[%clk 0:01:20.5]} 38... Kg6
{[%clk 0:00:45.4]} 39. Kc1 {[%clk 0:01:15.6]} 39... b5 {[%clk 0:00:45.2]} 40.
axb5 {[%clk 0:01:15.5]} 40... axb5 {[%clk 0:00:46.1]} 41. Kd2 {[%clk 0:01:16.2]}
41... Kf6 {[%clk 0:00:46.1]} 42. Ra1 {[%clk 0:01:10.5]} 42... Rxf3 {[%clk
0:00:46]} 43. Ra6+ {[%clk 0:01:10.8]} 43... Ke5 {[%clk 0:00:43.5]} 44. Rxh6
{[%clk 0:01:10.6]} 44... Rf2+ {[%clk 0:00:43.8]} 45. Kd3 {[%clk 0:01:09.8]}
45... Rf3+ {[%clk 0:00:42.2]} 46. Kd2 {[%clk 0:01:10]} 46... Rg3 {[%clk
0:00:42.4]} 47. Rc6 {[%clk 0:01:04.9]} 47... Kd5 {[%clk 0:00:42.2]} 48. Rg6
{[%clk 0:01:05.4]} 48... f3 {[%clk 0:00:40.8]} 49. h5 {[%clk 0:01:02.7]} 49...
Rg1 {[%clk 0:00:38.5]} 50. Rf6 {[%clk 0:00:55]} 50... Rxg4 {[%clk 0:00:34.5]}
51. Rxf3 {[%clk 0:00:55.1]} 51... Rh4 {[%clk 0:00:32.3]} 52. Rf5+ {[%clk
0:00:55.3]} 52... Kc6 {[%clk 0:00:28]} 53. Kd3 {[%clk 0:00:53.8]} 53... Rh3+
{[%clk 0:00:24.9]} 54. Ke4 {[%clk 0:00:53.6]} 54... Rh2 {[%clk 0:00:25.1]} 55.
Rf6+ {[%clk 0:00:47.3]} 55... Kd7 {[%clk 0:00:25.7]} 56. Rf5 {[%clk 0:00:36.5]}
56... Rxc2 {[%clk 0:00:24]} 57. h6 {[%clk 0:00:36.8]} 57... Re2+ {[%clk
0:00:21.3]} 58. Kd3 {[%clk 0:00:33.8]} 58... Re3+ {[%clk 0:00:21.2]} 59. Kd2
{[%clk 0:00:32.3]} 59... Rh3 {[%clk 0:00:17.9]} 60. Rf7+ {[%clk 0:00:25.7]}
60... Kd6 {[%clk 0:00:18]} 61. h7 {[%clk 0:00:22.6]} 61... c4 {[%clk 0:00:18.2]}
62. bxc4 {[%clk 0:00:22.5]} 62... bxc4 {[%clk 0:00:19.1]} 63. Ke2 {[%clk
0:00:20.8]} 63... c3 {[%clk 0:00:18.8]} 64. Kd1 {[%clk 0:00:16.8]} 64... Ke5
{[%clk 0:00:17.9]} 65. Re7+ {[%clk 0:00:15.9]} 65... Kd5 {[%clk 0:00:18.4]} 66.
Rd7+ {[%clk 0:00:16.1]} 66... Ke4 {[%clk 0:00:18.5]} 67. Kc2 {[%clk 0:00:13.4]}
67... Rh2+ {[%clk 0:00:18.6]} 68. Kb3 {[%clk 0:00:13.8]} 68... Kd3 {[%clk
0:00:18.9]} 69. Rg7 {[%clk 0:00:12.5]} 69... c2 {[%clk 0:00:17.4]} 70. Kb2
{[%clk 0:00:11.9]} 70... Kd2 {[%clk 0:00:16.8]} 71. Rc7 {[%clk 0:00:09.9]} 71...
d3 {[%clk 0:00:16.2]} 72. Kb3 {[%clk 0:00:03.5]} 72... c1=Q {[%clk 0:00:15]} 73.
Rxc1 {[%clk 0:00:03.8]} 73... Kxc1 {[%clk 0:00:15.9]} 74. Kc3 {[%clk 0:00:04.6]}
74... d2 {[%clk 0:00:16.1]} 75. h8=Q {[%clk 0:00:03.4]} 75... Rxh8 {[%clk
0:00:15.3]} 76. Kc4 {[%clk 0:00:04.3]} 76... d1=Q {[%clk 0:00:15]} 0-1

[Event "Late-Titled-Tuesday-Blitz-June-18-2024"]
[Site "Chess.com"]
[Date "2024.06.18"]
[Round "3"]
[White "Tunahan_Makaraci"]
[Black "EternalNight8"]
[Result "1-0"]
[WhiteElo "2613"]
[BlackElo "2415"]
[TimeControl "180+1"]
[EndTime "14:31:10 PDT"]
[Termination "Tunahan_Makaraci won on time"]

1. e4 {[%clk 0:03:00.9]} 1... c5 {[%clk 0:02:59.5]} 2. Nf3 {[%clk 0:02:57.5]}
2... d6 {[%clk 0:02:58.5]} 3. d4 {[%clk 0:02:53.1]} 3... cxd4 {[%clk 0:02:59.4]}
4. Nxd4 {[%clk 0:02:53.8]} 4... Nf6 {[%clk 0:02:59.1]} 5. Nc3 {[%clk 0:02:54.4]}
5... Nc6 {[%clk 0:02:59.4]} 6. Bg5 {[%clk 0:02:47.6]} 6... Bd7 {[%clk
0:02:58.8]} 7. Qd2 {[%clk 0:02:46.5]} 7... Rc8 {[%clk 0:02:57.5]} 8. Bb5 {[%clk
0:02:44.1]} 8... Nxd4 {[%clk 0:02:37.2]} 9. Bxd7+ {[%clk 0:02:43.8]} 9... Nxd7
{[%clk 0:02:03]} 10. Qxd4 {[%clk 0:02:44.7]} 10... h6 {[%clk 0:01:56.2]} 11. Bh4
{[%clk 0:02:41.5]} 11... Nc5 {[%clk 0:01:53.8]} 12. O-O-O {[%clk 0:02:38.5]}
12... Qa5 {[%clk 0:01:50.3]} 13. Kb1 {[%clk 0:02:35]} 13... Rg8 {[%clk
0:01:30.3]} 14. Rhe1 {[%clk 0:02:13.5]} 14... Ne6 {[%clk 0:01:17.2]} 15. Qd5
{[%clk 0:02:07]} 15... Qb6 {[%clk 0:01:09.1]} 16. Qb5+ {[%clk 0:02:04.3]} 16...
Qxb5 {[%clk 0:01:07.4]} 17. Nxb5 {[%clk 0:02:05.2]} 17... a6 {[%clk 0:01:07.9]}
18. Nc3 {[%clk 0:01:58.8]} 18... g5 {[%clk 0:01:04.1]} 19. Bg3 {[%clk
0:01:58.9]} 19... Bg7 {[%clk 0:00:55.3]} 20. e5 {[%clk 0:01:56.3]} 20... dxe5
{[%clk 0:00:54.8]} 21. Bxe5 {[%clk 0:01:56.6]} 21... Bxe5 {[%clk 0:00:47.6]} 22.
Rxe5 {[%clk 0:01:56.3]} 22... Rd8 {[%clk 0:00:46]} 23. Rde1 {[%clk 0:01:37.5]}
23... Kd7 {[%clk 0:00:38.1]} 24. Ne4 {[%clk 0:01:31.8]} 24... f6 {[%clk
0:00:24.2]} 25. Nxf6+ {[%clk 0:01:25]} 25... exf6 {[%clk 0:00:21.4]} 26. Rxe6
{[%clk 0:01:25.3]} 26... Rgf8 {[%clk 0:00:17.6]} 27. Re7+ {[%clk 0:01:23.6]}
27... Kc8 {[%clk 0:00:18.2]} 28. Kc1 {[%clk 0:01:23.6]} 28... Rd4 {[%clk
0:00:15.7]} 29. Rd1 {[%clk 0:01:16.8]} 29... Rxd1+ {[%clk 0:00:13.8]} 30. Kxd1
{[%clk 0:01:17]} 30... Rd8+ {[%clk 0:00:14.7]} 31. Ke2 {[%clk 0:01:17.2]} 31...
Rd5 {[%clk 0:00:13.9]} 32. Rf7 {[%clk 0:01:15.4]} 32... Rc5 {[%clk 0:00:13.6]}
33. c3 {[%clk 0:01:15.1]} 33... Rb5 {[%clk 0:00:13.4]} 34. b4 {[%clk 0:01:14.2]}
34... a5 {[%clk 0:00:13.6]} 35. a3 {[%clk 0:01:13]} 35... axb4 {[%clk
0:00:13.1]} 36. axb4 {[%clk 0:01:13.9]} 36... Rf5 {[%clk 0:00:12.8]} 37. Ke3
{[%clk 0:01:13]} 37... b5 {[%clk 0:00:11.5]} 38. Rh7 {[%clk 0:01:04.7]} 38...
Re5+ {[%clk 0:00:11.4]} 39. Kd3 {[%clk 0:01:04.2]} 39... Rd5+ {[%clk 0:00:11.4]}
40. Kc2 {[%clk 0:01:04]} 40... Re5 {[%clk 0:00:10.2]} 41. Kd3 {[%clk 0:01:01.6]}
41... Rd5+ {[%clk 0:00:10.5]} 42. Ke4 {[%clk 0:01:01]} 42... Re5+ {[%clk
0:00:10.6]} 43. Kd4 {[%clk 0:01:00.4]} 43... Re2 {[%clk 0:00:10.5]} 44. Rxh6
{[%clk 0:00:56.6]} 44... Rxf2 {[%clk 0:00:10.7]} 45. Kc5 {[%clk 0:00:56]} 45...
Rf5+ {[%clk 0:00:09.7]} 46. Kc6 {[%clk 0:00:55.9]} 46... Kd8 {[%clk 0:00:09.1]}
47. g4 {[%clk 0:00:53.7]} 47... Rf3 {[%clk 0:00:06.3]} 48. Kxb5 {[%clk
0:00:53.7]} 48... Rxc3 {[%clk 0:00:06.4]} 49. Rxf6 {[%clk 0:00:53.9]} 49... Rh3
{[%clk 0:00:06.7]} 50. Rf2 {[%clk 0:00:48.3]} 50... Rh4 {[%clk 0:00:06.2]} 51.
Rg2 {[%clk 0:00:41.4]} 51... Kc7 {[%clk 0:00:06.4]} 52. Rc2+ {[%clk 0:00:40.4]}
52... Kb7 {[%clk 0:00:06.6]} 53. Rg2 {[%clk 0:00:36.7]} 53... Kc7 {[%clk
0:00:06.9]} 54. Kc5 {[%clk 0:00:37.2]} 54... Kb7 {[%clk 0:00:07]} 55. Kd5 {[%clk
0:00:36.9]} 55... Rh8 {[%clk 0:00:05.2]} 56. Ke5 {[%clk 0:00:37]} 56... Rf8
{[%clk 0:00:05.5]} 57. b5 {[%clk 0:00:20.3]} 57... Kb6 {[%clk 0:00:05.4]} 58.
Rd2 {[%clk 0:00:18.3]} 58... Kxb5 {[%clk 0:00:04.4]} 59. Rd5+ {[%clk 0:00:16.3]}
59... Kc6 {[%clk 0:00:04.9]} 60. Rd6+ {[%clk 0:00:12.9]} 60... Kc7 {[%clk
0:00:05.3]} 61. Rg6 {[%clk 0:00:13.4]} 61... Rh8 {[%clk 0:00:05.9]} 62. Rxg5
{[%clk 0:00:11.3]} 62... Rxh2 {[%clk 0:00:06.5]} 63. Rf5 {[%clk 0:00:10]} 63...
Kd7 {[%clk 0:00:05.8]} 64. Kf6 {[%clk 0:00:09.6]} 64... Ke8 {[%clk 0:00:05.4]}
65. Kg7 {[%clk 0:00:09.6]} 65... Rg2 {[%clk 0:00:05.4]} 66. g5 {[%clk
0:00:09.9]} 66... Ke7 {[%clk 0:00:05.8]} 67. Re5+ {[%clk 0:00:08.5]} 67... Kd6
{[%clk 0:00:04.9]} 68. Kf6 {[%clk 0:00:07.7]} 68... Rf2+ {[%clk 0:00:03.3]} 69.
Rf5 {[%clk 0:00:08.1]} 69... Rg2 {[%clk 0:00:03.7]} 70. g6 {[%clk 0:00:08.4]}
70... Kd7 {[%clk 0:00:03]} 71. Kf7 {[%clk 0:00:07.5]} 71... Re2 {[%clk
0:00:02.2]} 72. g7 {[%clk 0:00:07.1]} 72... Re7+ {[%clk 0:00:02.1]} 73. Kg6
{[%clk 0:00:07.5]} 73... Re6+ {[%clk 0:00:02.6]} 74. Kh7 {[%clk 0:00:06.8]}
74... Re7 {[%clk 0:00:03.2]} 75. Kh8 {[%clk 0:00:07]} 75... Ke6 {[%clk
0:00:03.7]} 76. Rf8 {[%clk 0:00:05.9]} 1-0